bitfinex/quotes_BTCUSD_20250719
["timestamp","ask_amount","ask_price","bid_price","bid_amount"]
[1752908322553,0.64611593,118210.0,118200.0,0.56881817]
[1752908322762,0.64611593,118210.0,118200.0,0.7380229]
[1752908322920,0.62840513,118210.0,118200.0,0.7411829]
[1752908323323,0.63038513,118210.0,118200.0,0.7411829]
[1752908323527,0.64598513,118210.0,118200.0,0.7411829]
[1752908326469,0.64598513,118210.0,118200.0,0.7157889]
[1752908328070,0.19517785,118210.0,118200.0,0.7157889]
[1752908328266,0.64598513,118210.0,118200.0,0.7157889]
[1752908332658,0.64598513,118210.0,118200.0,0.54658417]
[1752908335692,0.17759785,118210.0,118200.0,0.57698417]
[1752908335934,0.41146086,118210.0,118200.0,0.75464906]
[1752908336140,0.41146086,118210.0,118200.0,0.75464913]
[1752908336480,0.41146086,118210.0,118200.0,0.76310929]
[1752908336891,0.41146086,118210.0,118200.0,0.73962913]
[1752908337103,0.41146086,118210.0,118200.0,0.74808929]
[1752908337396,0.41146086,118210.0,118200.0,0.73962913]
[1752908338168,0.6368645,118210.0,118200.0,0.73962913]
[1752908339165,0.6368645,118210.0,118200.0,0.5875889]
[1752908339409,0.6368645,118210.0,118200.0,0.7158289]
[1752908340649,0.6368645,118210.0,118200.0,0.7158689]
[1752908340871,0.6368645,118210.0,118200.0,0.72432913]
[1752908341618,0.6389445,118210.0,118200.0,0.5844289]
[1752908341826,0.6546445,118210.0,118200.0,0.7127889]
[1752908342466,0.6546445,118210.0,118200.0,0.5844289]
[1752908342681,0.66545513,118210.0,118200.0,0.54150417]
[1752908344202,0.66238513,118210.0,118200.0,0.7107089]
[1752908344409,0.64618513,118210.0,118200.0,0.7126989]
[1752908344902,0.64618513,118210.0,118200.0,0.72417913]
[1752908345123,0.64618513,118210.0,118200.0,0.7157189]
[1752908345302,0.6389445,118210.0,118200.0,0.73263922]
[1752908346554,0.6389445,118210.0,118200.0,0.73263929]
[1752908346766,0.6389445,118210.0,118200.0,0.74109938]
[1752908347620,0.6389445,118210.0,118200.0,0.73263929]
[1752908349257,0.6389445,118210.0,118200.0,0.74109938]
[1752908349506,0.6389445,118210.0,118200.0,0.73263929]
[1752908349889,0.6389445,118210.0,118200.0,0.74109938]
[1752908350113,0.6389445,118210.0,118200.0,0.73263929]
[1752908351700,0.6389445,118210.0,118200.0,0.72417913]
[1752908352150,0.6389445,118210.0,118200.0,0.73263929]
[1752908352428,0.6389445,118210.0,118200.0,0.72417913]
[1752908353118,0.6389445,118210.0,118200.0,0.74109938]
[1752908353458,0.6389445,118210.0,118200.0,0.73263929]
[1752908353871,0.6389445,118210.0,118200.0,0.72417913]
[1752908356546,0.6389445,118210.0,118200.0,0.73263929]
[1752908357328,0.63053707,118210.0,118200.0,0.7157189]
[1752908358203,0.6374777,118210.0,118200.0,0.54349417]
[1752908362909,0.64550335,118210.0,118200.0,0.54349417]
[1752908381041,0.64550335,118210.0,118200.0,0.41517417]
[1752908381249,0.64550335,118210.0,118200.0,0.54333417]
[1752908384985,0.64550335,118210.0,118200.0,0.41517417]
[1752908385173,0.64550335,118210.0,118200.0,0.54333417]
[1752908387003,0.64550335,118210.0,118200.0,0.56872817]
[1752908388634,0.64550335,118210.0,118200.0,0.57188817]
[1752908389556,0.19469607,118210.0,118200.0,0.57188817]
[1752908389783,0.64550335,118210.0,118200.0,0.57188817]
[1752908393010,0.63010335,118210.0,118200.0,0.57188817]
[1752908399418,0.46091293,118210.0,118200.0,0.7410929]
[1752908399667,0.46091293,118210.0,118200.0,0.76575313]
[1752908399668,0.25034782,118210.0,118200.0,0.76575313]
[1752908399858,0.64494188,118210.0,118200.0,0.7572929]
[1752908400107,0.64494188,118210.0,118200.0,0.7410929]
[1752908400985,0.63648272,118210.0,118200.0,0.7410929]
[1752908401609,0.63648272,118210.0,118200.0,0.74955313]
[1752908401824,0.63648272,118210.0,118200.0,0.7410929]
[1752908403119,0.63648272,118210.0,118200.0,0.74955313]
[1752908403574,0.18567544,118210.0,118200.0,0.75801329]
[1752908403789,0.41107908,118210.0,118200.0,0.75801329]
[1752908404244,0.41107908,118210.0,118200.0,0.7410929]
[1752908404692,0.41107908,118210.0,118200.0,0.74955313]
[1752908405766,0.41107908,118210.0,118200.0,0.7410929]
[1752908406346,0.01648481,118210.0,118200.0,0.7410929]
[1752908406715,0.23342929,118210.0,118200.0,0.79777259]
[1752908407327,0.23342929,118210.0,118200.0,0.79677259]
[1752908407561,0.23342929,118210.0,118200.0,0.79977259]
[1752908407770,0.24188823,118210.0,118200.0,0.79977259]
[1752908408406,0.23342929,118210.0,118200.0,0.79977259]
[1752908408852,0.24188816,118210.0,118200.0,0.79977259]
[1752908409062,0.24188816,118210.0,118200.0,0.79777259]
[1752908409063,0.25034718,118210.0,118200.0,0.79777259]
[1752908409274,0.25034718,118210.0,118200.0,0.80177259]
[1752908409704,0.24188816,118210.0,118200.0,0.80177259]
[1752908410637,0.2503471,118210.0,118200.0,0.80177259]
[1752908410940,0.01648452,118210.0,118200.0,0.80177259]
[1752908411150,0.24188816,118210.0,118200.0,0.80177259]
[1752908411988,0.2503471,118210.0,118200.0,0.80177259]
[1752908412396,0.25880619,118210.0,118200.0,0.80177259]
[1752908412632,0.2503471,118210.0,118200.0,0.80177259]
[1752908413728,0.25880619,118210.0,118200.0,0.80177259]
[1752908414124,0.2503471,118210.0,118200.0,0.80177259]
[1752908414269,0.24188816,118210.0,118200.0,0.80177259]
[1752908415445,0.25034718,118210.0,118200.0,0.80177259]
[1752908415919,0.24188816,118210.0,118200.0,0.80177259]
[1752908416221,0.25034718,118210.0,118200.0,0.80177259]
[1752908417717,0.24188816,118210.0,118200.0,0.80177259]
[1752908418238,0.25034718,118210.0,118200.0,0.80177259]
[1752908418627,0.2503471,118210.0,118200.0,0.80177259]
[1752908419340,0.2503471,118210.0,118200.0,0.78607259]
[1752908419814,0.24188816,118210.0,118200.0,0.78607259]
[1752908420103,0.2503471,118210.0,118200.0,0.78607259]
[1752908421573,0.24188816,118210.0,118200.0,0.78607259]
[1752908422531,0.23386251,118210.0,118200.0,0.78607259]
[1752908423020,0.24232145,118210.0,118200.0,0.78607259]
[1752908424644,0.23386251,118210.0,118200.0,0.78607259]
[1752908426220,0.24232145,118210.0,118200.0,0.78607259]
[1752908426636,0.23386251,118210.0,118200.0,0.78607259]
[1752908426870,0.24232145,118210.0,118200.0,0.78607259]
[1752908428254,0.25036859,118210.0,118200.0,0.77047259]
[1752908428596,0.01650601,118210.0,118200.0,0.77047259]
[1752908428815,0.24190965,118210.0,118200.0,0.77047259]
[1752908431264,0.25036859,118210.0,118200.0,0.77047259]
[1752908431703,0.25882761,118210.0,118200.0,0.77047259]
[1752908431908,0.2672867,118210.0,118200.0,0.77047259]
[1752908432910,0.25036859,118210.0,118200.0,0.77047259]
[1752908433652,0.24190965,118210.0,118200.0,0.77047259]
[1752908434541,0.23345078,118210.0,118200.0,0.77047259]
[1752908435645,0.24190972,118210.0,118200.0,0.77047259]
[1752908436238,0.00804714,118210.0,118200.0,0.77047259]
[1752908436445,0.24190965,118210.0,118200.0,0.77047259]
[1752908436641,0.23386251,118210.0,118200.0,0.77047259]
[1752908437030,0.24232153,118210.0,118200.0,0.77047259]
[1752908437415,0.23386251,118210.0,118200.0,0.77047259]
[1752908437640,0.24232145,118210.0,118200.0,0.77047259]
[1752908438602,0.23386251,118210.0,118200.0,0.77047259]
[1752908439018,0.24232153,118210.0,118200.0,0.77047259]
[1752908439226,0.23386251,118210.0,118200.0,0.77047259]
[1752908440362,0.24211741,118210.0,118200.0,0.77047259]
[1752908441945,0.01671377,118210.0,118200.0,0.77047259]
[1752908442153,0.24211741,118210.0,118200.0,0.77047259]
[1752908442763,0.25057643,118210.0,118200.0,0.77047259]
[1752908444398,0.25057635,118210.0,118200.0,0.77047259]
[1752908445876,0.24211741,118210.0,118200.0,0.77047259]
[1752908446708,0.24211741,118210.0,118200.0,0.74507859]
[1752908447250,0.25057635,118210.0,118200.0,0.74507859]
[1752908449022,0.25903537,118210.0,118200.0,0.74507859]
[1752908449244,0.03363173,118210.0,118200.0,0.74507859]
[1752908449447,0.25903537,118210.0,118200.0,0.74507859]
[1752908451731,0.25057635,118210.0,118200.0,0.74507859]
[1752908452362,0.24211741,118210.0,118200.0,0.74507859]
[1752908452726,0.25057643,118210.0,118200.0,0.74507859]
[1752908453146,0.24211741,118210.0,118200.0,0.74507859]
[1752908453346,0.25057643,118210.0,118200.0,0.74507859]
[1752908453514,0.24211741,118210.0,118200.0,0.74507859]
[1752908454687,0.23365854,118210.0,118200.0,0.74507859]
[1752908458983,0.0082549,118210.0,118200.0,0.74507859]
[1752908459169,0.23365854,118210.0,118200.0,0.74507859]
[1752908459368,0.22540364,118210.0,118200.0,0.74507859]
[1752908459595,0.23357498,118210.0,118200.0,0.74507859]
[1752908462179,0.24203392,118210.0,118200.0,0.74507859]
[1752908462529,0.23357498,118210.0,118200.0,0.74507859]
[1752908463166,0.24203392,118210.0,118200.0,0.74507859]
[1752908463374,0.23357498,118210.0,118200.0,0.74507859]
[1752908463871,0.24203392,118210.0,118200.0,0.74507859]
[1752908464137,0.23357498,118210.0,118200.0,0.74507859]
[1752908474435,0.00817134,118210.0,118200.0,0.77557859]
[1752908474633,0.23357498,118210.0,118200.0,0.77557859]
[1752908474815,0.22540364,118210.0,118200.0,0.77557859]
[1752908475019,0.00811617,118210.0,118200.0,0.77557859]
[1752908475220,0.23351981,118210.0,118200.0,0.77557859]
[1752908475379,0.22540364,118210.0,118200.0,0.77557859]
[1752908477074,4e-05,118230.0,118220.0,0.16917611]
[1752908477282,0.23390108,118230.0,118220.0,0.50374038]
[1752908477472,0.24970115,118230.0,118220.0,0.50690038]
[1752908477715,0.24334364,118230.0,118220.0,0.50690038]
[1752908478108,0.25180122,118230.0,118220.0,0.50690038]
[1752908478316,0.25980629,118230.0,118220.0,0.50674045]
[1752908478519,0.27530629,118230.0,118220.0,0.50674045]
[1752908479110,0.27530629,118230.0,118220.0,0.51519875]
[1752908479311,0.26684871,118230.0,118220.0,0.51519875]
[1752908479534,0.27530622,118230.0,118220.0,0.51519875]
[1752908479731,0.27530622,118230.0,118220.0,0.51719875]
[1752908480297,0.2837638,118230.0,118220.0,0.50874045]
[1752908480475,0.29222153,118230.0,118220.0,0.50874045]
[1752908480809,0.29222146,118230.0,118220.0,0.50874045]
[1752908481098,0.30067926,118230.0,118220.0,0.50874052]
[1752908481606,0.30067919,118230.0,118220.0,0.50874052]
[1752908482252,0.30067919,118230.0,118220.0,0.49182357]
[1752908482491,0.30913706,118230.0,118220.0,0.50028208]
[1752908482995,0.30067919,118230.0,118220.0,0.50874052]
[1752908484333,0.30067919,118230.0,118220.0,0.50028208]
[1752908484577,0.30067919,118230.0,118220.0,0.51719889]
[1752908484993,0.30067919,118230.0,118220.0,0.50874052]
[1752908485595,0.30913699,118230.0,118220.0,0.50874052]
[1752908485730,0.30913699,118230.0,118220.0,0.49182357]
[1752908485931,0.30913742,118230.0,118220.0,0.50028216]
[1752908486605,0.30913735,118230.0,118220.0,0.50874067]
[1752908487342,0.30113228,118230.0,118220.0,0.50874067]
[1752908487802,0.30113228,118230.0,118220.0,0.50028216]
[1752908488290,0.30113228,118230.0,118220.0,0.50874067]
[1752908488840,0.30113228,118230.0,118220.0,0.50028216]
[1752908489252,0.30113264,118230.0,118220.0,0.50028216]
[1752908489560,0.30113264,118230.0,118220.0,0.49182357]
[1752908489773,0.30113307,118230.0,118220.0,0.49182357]
[1752908489980,0.30113299,118230.0,118220.0,0.50028223]
[1752908490184,0.30113299,118230.0,118220.0,0.70324223]
[1752908490397,0.29267526,118230.0,118220.0,0.69478364]
[1752908490846,0.29267526,118230.0,118220.0,0.7032423]
[1752908491238,0.27691173,118230.0,118220.0,0.71170103]
[1752908492390,0.26845379,118230.0,118220.0,0.71170103]
[1752908492844,0.2769118,118230.0,118220.0,0.71170103]
[1752908493033,0.04305015,118230.0,118220.0,0.71170103]
[1752908493189,0.2769118,118230.0,118220.0,0.71170103]
[1752908493394,0.05150816,118230.0,118220.0,0.71170103]
[1752908493584,0.2769118,118230.0,118220.0,0.71170103]
[1752908494716,0.26845379,118230.0,118220.0,0.71170103]
[1752908495188,0.26845379,118230.0,118220.0,0.72015962]
[1752908495376,0.2769118,118230.0,118220.0,0.71170103]
[1752908496381,0.2611118,118230.0,118220.0,0.71170103]
[1752908496589,0.25055379,118230.0,118220.0,0.72334954]
[1752908497291,0.25055379,118230.0,118220.0,0.72334962]
[1752908497495,0.2590118,118230.0,118220.0,0.71489103]
[1752908497760,0.26555379,118230.0,118220.0,0.71489103]
[1752908497961,0.26555379,118230.0,118220.0,0.72334962]
[1752908498187,0.27401173,118230.0,118220.0,0.72334962]
[1752908498414,0.2655535,118230.0,118220.0,0.72334962]
[1752908498617,0.2655535,118230.0,118220.0,0.72334926]
[1752908498802,0.2655535,118230.0,118220.0,0.72334933]
[1752908498960,0.2655535,118230.0,118220.0,0.73180777]
[1752908499167,0.2655535,118230.0,118220.0,0.72334933]
[1752908499581,0.26555343,118230.0,118220.0,0.7318077]
[1752908499960,0.2505535,118230.0,118220.0,0.72334897]
[1752908500174,0.25901087,118230.0,118220.0,0.72334897]
[1752908500787,0.25901087,118230.0,118220.0,0.72334904]
[1752908500992,0.25901087,118230.0,118220.0,0.73180741]
[1752908501470,0.25901087,118230.0,118220.0,0.72334875]
[1752908501689,0.25901087,118230.0,118220.0,0.73180705]
[1752908501897,0.26746874,118230.0,118220.0,0.71489038]
[1752908502533,0.25901087,118230.0,118220.0,0.71489038]
[1752908502749,0.26746867,118230.0,118220.0,0.71489038]
[1752908502988,0.26746867,118230.0,118220.0,0.70643194]
[1752908503205,0.25901087,118230.0,118220.0,0.72334861]
[1752908503619,0.25901087,118230.0,118220.0,0.71489031]
[1752908505370,0.25901087,118230.0,118220.0,0.72334861]
[1752908505587,0.25901087,118230.0,118220.0,0.70643194]
[1752908505820,0.28316874,118230.0,118220.0,0.70643194]
[1752908506239,0.28316874,118230.0,118220.0,0.71489038]
[1752908506578,0.28316874,118230.0,118220.0,0.70643194]
[1752908506800,0.28316874,118230.0,118220.0,0.71489038]
[1752908507027,0.27471087,118230.0,118220.0,0.74027738]
[1752908507254,0.26625314,118230.0,118220.0,0.75719405]
[1752908507479,0.27471087,118230.0,118220.0,0.75719405]
[1752908507705,0.27471087,118230.0,118220.0,0.74873575]
[1752908507916,0.27471087,118230.0,118220.0,0.74027738]
[1752908508794,0.27471087,118230.0,118220.0,0.74873575]
[1752908509196,0.27471087,118230.0,118220.0,0.74027738]
[1752908509411,0.28316867,118230.0,118220.0,0.73181894]
[1752908509611,0.28316867,118230.0,118220.0,0.74027738]
[1752908509850,0.28316867,118230.0,118220.0,0.73181894]
[1752908510543,0.28316867,118230.0,118220.0,0.74027738]
[1752908510719,0.27471087,118230.0,118220.0,0.74873575]
[1752908511178,0.27471087,118230.0,118220.0,0.75719405]
[1752908511639,0.25901087,118230.0,118220.0,0.75719405]
[1752908512064,0.25055314,118230.0,118220.0,0.75719405]
[1752908513842,0.25901087,118230.0,118220.0,0.74873575]
[1752908514038,0.25901087,118230.0,118220.0,0.74027738]
[1752908514263,0.26746867,118230.0,118220.0,0.74027738]
[1752908514650,0.28326867,118230.0,118220.0,0.74873575]
[1752908514997,0.28326867,118230.0,118220.0,0.74027738]
[1752908515193,0.27481087,118230.0,118220.0,0.74873575]
[1752908516042,0.27481087,118230.0,118220.0,0.75719405]
[1752908516355,0.27481087,118230.0,118220.0,0.74873575]
[1752908516495,0.27481087,118230.0,118220.0,0.75719405]
[1752908516697,0.04940723,118230.0,118220.0,0.75719405]
[1752908516913,0.27481087,118230.0,118220.0,0.75719405]
[1752908517708,0.28326874,118230.0,118220.0,0.74027738]
[1752908517916,0.27481087,118230.0,118220.0,0.74873575]
[1752908518735,0.27481087,118230.0,118220.0,0.75719405]
[1752908518912,0.27481087,118230.0,118220.0,0.74873575]
[1752908519282,0.27481087,118230.0,118220.0,0.75719405]
[1752908519791,0.27481087,118230.0,118220.0,0.74873575]
[1752908519936,0.28326874,118230.0,118220.0,0.74873575]
[1752908520349,0.27481087,118230.0,118220.0,0.74873575]
[1752908520553,0.28326874,118230.0,118220.0,0.74027738]
[1752908520757,0.28326874,118230.0,118220.0,0.74873575]
[1752908521098,0.29172675,118230.0,118220.0,0.73181894]
[1752908521347,0.28326874,118230.0,118220.0,0.74027738]
[1752908521546,0.28326874,118230.0,118220.0,0.73181894]
[1752908521871,0.29172675,118230.0,118220.0,0.73181894]
[1752908522080,0.28326874,118230.0,118220.0,0.73181894]
[1752908522304,0.29172675,118230.0,118220.0,0.73181923]
[1752908522524,0.29376675,118230.0,118220.0,0.73181923]
[1752908522741,0.29376675,118230.0,118220.0,0.7318193]
[1752908523143,0.29376675,118230.0,118220.0,0.74027789]
[1752908523491,0.28530931,118230.0,118220.0,0.73181937]
[1752908523667,0.28530931,118230.0,118220.0,0.74027803]
[1752908524108,0.28530931,118230.0,118220.0,0.74873662]
[1752908525168,0.28530931,118230.0,118220.0,0.75719513]
[1752908525570,0.28530931,118230.0,118220.0,0.74873662]
[1752908526029,0.28530931,118230.0,118220.0,0.72334962]
[1752908526212,0.28530931,118230.0,118220.0,0.71489103]
[1752908526591,0.28530931,118230.0,118220.0,0.70643237]
[1752908526850,0.28530931,118230.0,118220.0,0.71489103]
[1752908527476,0.05990567,118230.0,118220.0,0.71489103]
[1752908527680,0.28530931,118230.0,118220.0,0.71489103]
[1752908528495,0.28530931,118230.0,118220.0,0.70643237]
[1752908529500,0.28530931,118230.0,118220.0,0.71489103]
[1752908530023,0.2937674,118230.0,118220.0,0.71489103]
[1752908530472,0.28530931,118230.0,118220.0,0.72334962]
[1752908530674,0.28530931,118230.0,118220.0,0.73180813]
[1752908530883,0.28530931,118230.0,118220.0,0.72334962]
[1752908531747,0.28530931,118230.0,118220.0,0.71489103]
[1752908532047,0.05990567,118230.0,118220.0,0.71489103]
[1752908532252,0.28530931,118230.0,118220.0,0.72334962]
[1752908532453,0.28530931,118230.0,118220.0,0.71489103]
[1752908533276,0.28530931,118230.0,118220.0,0.72334962]
[1752908533481,0.28530931,118230.0,118220.0,0.71489103]
[1752908533482,0.45447162,118230.0,118220.0,0.71489103]
[1752908534024,0.45447162,118230.0,118220.0,0.69797364]
[1752908534242,0.44601389,118230.0,118220.0,0.70643237]
[1752908534448,0.44601389,118230.0,118220.0,0.69797364]
[1752908535131,0.44601389,118230.0,118220.0,0.70643237]
[1752908535962,0.44601389,118230.0,118220.0,0.68951484]
[1752908536177,0.43755602,118230.0,118220.0,0.68951484]
[1752908536400,0.43755602,118230.0,118220.0,0.69797364]
[1752908537853,0.43755602,118230.0,118220.0,0.68951484]
[1752908539411,0.43755602,118230.0,118220.0,0.69797364]
[1752908541804,0.21215238,118230.0,118220.0,0.7064323]
[1752908542017,0.43755602,118230.0,118220.0,0.7064323]
[1752908542249,0.43755602,118230.0,118220.0,0.69797364]
[1752908544732,0.43755602,118230.0,118220.0,0.70643237]
[1752908550610,0.43755602,118230.0,118220.0,0.69797364]
[1752908552465,0.42936154,118230.0,118220.0,0.69797364]
[1752908553662,0.42936154,118230.0,118220.0,0.70643237]
[1752908554126,0.26019945,118230.0,118220.0,0.71489103]
[1752908554373,0.03479581,118230.0,118220.0,0.71489103]
[1752908554565,0.26019945,118230.0,118220.0,0.70643237]
[1752908554788,0.26019945,118230.0,118220.0,0.71489103]
[1752908555305,0.26019945,118230.0,118220.0,0.72334962]
[1752908555586,0.26019945,118230.0,118220.0,0.73180813]
[1752908555836,0.26019945,118230.0,118220.0,0.72334962]
[1752908556231,0.26019945,118230.0,118220.0,0.71489103]
[1752908556479,0.26019945,118230.0,118220.0,0.72334962]
[1752908556672,0.26019945,118230.0,118220.0,0.71489103]
[1752908556873,0.26019945,118230.0,118220.0,0.72334962]
[1752908557791,0.26850003,118230.0,118220.0,0.72334962]
[1752908558117,0.2684996,118230.0,118220.0,0.73180813]
[1752908558317,0.27695754,118230.0,118220.0,0.72334933]
[1752908558445,0.27695747,118230.0,118220.0,0.72334933]
[1752908558661,0.28541541,118230.0,118220.0,0.72334933]
[1752908559142,0.05155383,118230.0,118220.0,0.73180777]
[1752908559353,0.27695754,118230.0,118220.0,0.72334933]
[1752908560498,0.27695754,118230.0,118220.0,0.70643223]
[1752908560910,0.27695754,118230.0,118220.0,0.71489082]
[1752908561459,0.27695754,118230.0,118220.0,0.72334926]
[1752908561675,0.2684996,118230.0,118220.0,0.72334926]
[1752908561887,0.28541556,118230.0,118220.0,0.71489082]
[1752908562074,0.28541548,118230.0,118220.0,0.71489082]
[1752908562939,0.28541548,118230.0,118220.0,0.70643223]
[1752908563662,0.28541548,118230.0,118220.0,0.71489082]
[1752908563874,0.28541548,118230.0,118220.0,0.70643223]
[1752908564079,0.28541548,118230.0,118220.0,0.71489082]
[1752908564790,0.28541548,118230.0,118220.0,0.72334933]
[1752908565321,0.28541548,118230.0,118220.0,0.71489082]
[1752908565989,0.28541548,118230.0,118220.0,0.72334933]
[1752908566313,0.28541548,118230.0,118220.0,0.71489082]
[1752908566511,0.28541548,118230.0,118220.0,0.70643223]
[1752908566780,0.2769579,118230.0,118220.0,0.70643223]
[1752908566984,0.2769579,118230.0,118220.0,0.69797357]
[1752908567198,0.2769579,118230.0,118220.0,0.72336057]
[1752908567416,0.4461197,118230.0,118220.0,0.72336057]
[1752908568256,0.4461197,118230.0,118220.0,0.73181923]
[1752908568675,0.4461197,118230.0,118220.0,0.72336057]
[1752908569703,0.4461197,118230.0,118220.0,0.71490184]
[1752908569914,0.4376619,118230.0,118220.0,0.72336064]
[1752908571563,0.4376619,118230.0,118220.0,0.71490184]
[1752908572514,0.4376619,118230.0,118220.0,0.72336064]
[1752908574763,0.4376619,118230.0,118220.0,0.73181937]
[1752908574983,0.4376619,118230.0,118220.0,0.72336064]
[1752908575172,0.21225826,118230.0,118220.0,0.72336064]
[1752908575408,0.4376619,118230.0,118220.0,0.72336064]
[1752908575602,0.4376619,118230.0,118220.0,0.71490184]
[1752908576245,0.4376619,118230.0,118220.0,0.72336064]
[1752908576787,0.4376619,118230.0,118220.0,0.71490184]
[1752908577106,0.4376619,118230.0,118220.0,0.72336064]
[1752908578436,0.4376619,118230.0,118220.0,0.73181937]
[1752908578914,0.4376619,118230.0,118220.0,0.74027803]
[1752908579579,0.4376619,118230.0,118220.0,0.73185937]
[1752908579804,0.4376619,118230.0,118220.0,0.74031796]
[1752908580626,0.4376619,118230.0,118220.0,0.73185937]
[1752908581146,0.4376619,118230.0,118220.0,0.74031803]
[1752908581607,0.4376619,118230.0,118220.0,0.73185937]
[1752908584827,0.4376619,118230.0,118220.0,0.59536064]
[1752908585074,0.42920403,118230.0,118220.0,0.72344064]
[1752908585265,0.42920403,118230.0,118220.0,0.73189937]
[1752908585871,0.42920403,118230.0,118220.0,0.72344064]
[1752908587285,0.42920403,118230.0,118220.0,0.73189937]
[1752908589126,0.42920403,118230.0,118220.0,0.60381937]
[1752908589378,0.42920403,118230.0,118220.0,0.73197937]
[1752908589570,0.42920403,118230.0,118220.0,0.59536064]
[1752908589782,0.42920403,118230.0,118220.0,0.72348064]
[1752908590435,0.42920403,118230.0,118220.0,0.73193937]
[1752908593572,0.42920403,118230.0,118220.0,0.55430453]
[1752908596401,0.42920403,118230.0,118220.0,0.54584573]
[1752908609368,0.20380039,118230.0,118220.0,0.54584573]
[1752908609589,0.42920403,118230.0,118220.0,0.55430453]
[1752908610268,0.42920403,118230.0,118220.0,0.56276326]
[1752908610512,0.42074602,118230.0,118220.0,0.56276326]
[1752908610973,0.42074602,118230.0,118220.0,0.55430453]
[1752908613660,0.40494602,118230.0,118220.0,0.55430453]
[1752908616706,0.42134602,118230.0,118220.0,0.55430453]
[1752908617359,0.41304544,118230.0,118220.0,0.55430453]
[1752908618375,0.41304544,118230.0,118220.0,0.56276326]
[1752908619033,0.39664544,118230.0,118220.0,0.74039803]
[1752908619696,0.40510353,118230.0,118220.0,0.74885662]
[1752908620378,0.40306353,118230.0,118220.0,0.74885662]
[1752908621543,0.40306353,118230.0,118220.0,0.74039803]
[1752908622718,0.41143229,118230.0,118220.0,0.74039803]
[1752908623136,0.41143229,118230.0,118220.0,0.73193937]
[1752908624411,0.41143229,118230.0,118220.0,0.74039803]
[1752908625422,0.41143229,118230.0,118220.0,0.73193937]
[1752908626908,0.41143229,118230.0,118220.0,0.70655237]
[1752908627115,0.43003229,118230.0,118220.0,0.69825364]
[1752908627667,0.43003229,118230.0,118220.0,0.56997364]
[1752908627877,0.43003229,118230.0,118220.0,0.69825364]
[1752908628534,0.43003229,118230.0,118220.0,0.52061873]
[1752908629332,0.43003229,118230.0,118220.0,0.52907753]
[1752908629539,0.40484943,118230.0,118220.0,0.52907753]
[1752908631007,0.40484943,118230.0,118220.0,0.53753626]
[1752908639663,0.39639134,118230.0,118220.0,0.52061873]
[1752908640981,0.39639134,118230.0,118220.0,0.52045873]
[1752908641894,0.1709877,118230.0,118220.0,0.52891746]
[1752908642084,0.39639134,118230.0,118220.0,0.52891753]
[1752908643978,0.39639134,118230.0,118220.0,0.52045873]
[1752908645322,0.39639134,118230.0,118220.0,0.52891753]
[1752908646839,0.39639134,118230.0,118220.0,0.52045873]
[1752908647079,0.39639134,118230.0,118220.0,0.52041873]
[1752908647446,0.1523877,118230.0,118220.0,0.52041873]
[1752908647644,0.37779134,118230.0,118220.0,0.54467753]
[1752908648171,0.37779134,118230.0,118220.0,0.71385364]
[1752908648383,0.37779134,118230.0,118220.0,0.72231237]
[1752908648600,0.37779134,118230.0,118220.0,0.70651237]
[1752908652277,0.37779134,118230.0,118220.0,0.69805364]
[1752908653631,0.37779134,118230.0,118220.0,0.52887753]
[1752908657459,0.37069276,118230.0,118220.0,0.52041873]
[1752908658795,0.37277276,118230.0,118220.0,0.52041873]
[1752908659405,0.37069276,118230.0,118220.0,0.52041873]
[1752908663071,0.14528912,118230.0,118220.0,0.52041873]
[1752908663277,0.0169151,118230.0,118220.0,0.74697031]
[1752908663608,0.0169151,118230.0,118220.0,0.77235631]
[1752908663609,0.00845744,118230.0,118220.0,0.77235631]
[1752908663816,0.24231788,118240.0,118230.0,0.2360776]
[1752908664011,0.46772152,118240.0,118230.0,0.35776756]
[1752908664221,0.47617882,118240.0,118230.0,0.36088749]
[1752908664421,0.01691424,118240.0,118230.0,0.36934515]
[1752908664628,0.46772152,118240.0,118230.0,0.36088749]
[1752908664832,0.02537154,118240.0,118230.0,0.36934522]
[1752908665032,0.47622864,118240.0,118230.0,0.36188756]
[1752908665276,0.47622864,118240.0,118230.0,0.35342969]
[1752908665503,0.47622864,118240.0,118230.0,0.35342976]
[1752908665711,0.47622864,118240.0,118230.0,0.3618877]
[1752908665956,0.47622864,118240.0,118230.0,0.35442976]
[1752908666352,0.48431601,118240.0,118230.0,0.3628877]
[1752908666554,0.48431601,118240.0,118230.0,0.37134557]
[1752908666703,0.49277338,118240.0,118230.0,0.37134557]
[1752908666900,0.49277338,118240.0,118230.0,0.37980337]
[1752908667105,0.49277338,118240.0,118230.0,0.37134557]
[1752908667935,0.49277338,118240.0,118230.0,0.3628877]
[1752908668142,0.48431601,118240.0,118230.0,0.37134557]
[1752908668582,0.47585871,118240.0,118230.0,0.3882611]
[1752908668800,0.47585871,118240.0,118230.0,0.37980337]
[1752908669018,0.48431536,118240.0,118230.0,0.37980337]
[1752908669471,0.47585828,118240.0,118230.0,0.3882611]
[1752908669953,0.47585828,118240.0,118230.0,0.35442969]
[1752908670171,0.49277266,118240.0,118230.0,0.3628877]
[1752908670387,0.49277259,118240.0,118230.0,0.35442976]
[1752908670681,0.49277259,118240.0,118230.0,0.3628877]
[1752908670893,0.50122989,118240.0,118230.0,0.35442976]
[1752908671100,0.50338989,118240.0,118230.0,0.3628877]
[1752908671315,0.48647536,118240.0,118230.0,0.3628877]
[1752908671527,0.49493259,118240.0,118230.0,0.37134557]
[1752908671946,0.48647536,118240.0,118230.0,0.37134557]
[1752908672541,0.47585821,118240.0,118230.0,0.37134557]
[1752908672748,0.47585821,118240.0,118230.0,0.3798033]
[1752908673183,0.45894447,118240.0,118230.0,0.38826096]
[1752908673387,0.47585835,118240.0,118230.0,0.37134529]
[1752908674132,0.47585835,118240.0,118230.0,0.37980295]
[1752908674513,0.46740134,118240.0,118230.0,0.37980295]
[1752908674740,0.01659406,118240.0,118230.0,0.37980295]
[1752908674950,0.46740134,118240.0,118230.0,0.38826053]
[1752908675407,0.01659399,118240.0,118230.0,0.38826053]
[1752908675846,0.46740127,118240.0,118230.0,0.38826053]
[1752908676569,0.47585821,118240.0,118230.0,0.37980295]
[1752908677909,0.46740127,118240.0,118230.0,0.37980295]
[1752908678121,0.47585821,118240.0,118230.0,0.38826053]
[1752908678311,0.02505093,118240.0,118230.0,0.37980295]
[1752908678547,0.25045457,118240.0,118230.0,0.37980295]
[1752908678851,0.25045457,118240.0,118230.0,0.38826053]
[1752908679065,0.47585821,118240.0,118230.0,0.37980295]
[1752908679274,0.47585821,118240.0,118230.0,0.37134529]
[1752908679489,0.49277245,118240.0,118230.0,0.37134536]
[1752908679698,0.49277245,118240.0,118230.0,0.37980309]
[1752908680114,0.49277238,118240.0,118230.0,0.38826075]
[1752908680540,0.49493238,118240.0,118230.0,0.37980309]
[1752908681274,0.48647522,118240.0,118230.0,0.38826039]
[1752908681704,0.49493238,118240.0,118230.0,0.37980281]
[1752908682439,0.48684501,118240.0,118230.0,0.37980281]
[1752908682658,0.48468501,118240.0,118230.0,0.37134515]
[1752908682872,0.48468501,118240.0,118230.0,0.37980281]
[1752908683938,0.48468501,118240.0,118230.0,0.59118039]
[1752908684148,0.47622785,118240.0,118230.0,0.59118039]
[1752908684533,0.48468501,118240.0,118230.0,0.58272281]